fUSD/lending_fUSD_20260130
["ID","MTS","AMOUNT","RATE_DAILY","PERIOD"]
[404028333,1769748640025,-500.0,0.00017999,2]
[404028334,1769748640035,-2369.0,0.00018,2]
[404028335,1769748640045,-1694.22141452,0.00018,2]
[404028336,1769748640212,-328.88666808,0.00018,2]
[404028337,1769748640224,-89524.96833229,0.00018,2]
[404028338,1769748640237,-1667.95075,0.00018,2]
[404028342,1769748641270,-288.82022351,0.00018,2]
[404028343,1769748641292,-8128.71537376,0.00018,2]
[404028344,1769748641303,-919.88539037,0.00018,2]
[404028345,1769748641314,-3864.10583401,0.00018,2]
[404028346,1769748641324,-601.50114901,0.00018,2]
[404028347,1769748641539,-270.00005,0.00018,2]
[404028348,1769748641551,-336.3733244,0.00018,2]
[404028349,1769748641562,-429.22884342,0.00018,2]
[404028350,1769748641586,-585.00775334,0.00018,2]
[404028351,1769748641598,-518.41009963,0.00018,2]
[404028352,1769748641736,-26057.02383779,0.00018,2]
[404028353,1769748641754,-1058.08230703,0.00018,2]
[404028354,1769748641868,-1.7e-07,0.00018,2]
[404028355,1769748641880,-254.35801595,0.00018,2]
[404028373,1769748645772,-2681.7102304,0.00018,2]
[404028374,1769748645921,-2430.46173728,0.00018,2]
[404028377,1769748646020,-374.36990935,0.00018,2]
[404028385,1769748646945,-151.0,0.00016718,2]
[404028388,1769748646963,-2346.82754587,0.00018,2]
[404028390,1769748646974,-1011.93215702,0.00018,2]
[404028391,1769748646984,-5375.44029711,0.00018,2]
[404028392,1769748646995,-7554.48005327,0.00018,2]
[404028393,1769748647224,-3325.83727886,0.00018,2]
[404028394,1769748647238,-414.94,0.00018,2]
[404028438,1769749350489,3000.0,0.00021,120]
[404028439,1769749362661,3000.0,0.00021,120]
[404028440,1769749372512,3641.0,0.00021,120]
[404028441,1769749470230,-300.0,0.00015199,2]
[404028442,1769749470252,-387.78,0.00015199,2]
[404028443,1769749495129,1053.14482859,0.00015,9]
[404028447,1769749831321,-738.0,0.00015199,2]
[404028448,1769749831331,-300.0,0.00015199,2]
[404028449,1769749831341,-0.41704918,0.00015199,2]
[404028450,1769749831375,-1146.95682328,0.00015199,2]
[404028451,1769749831387,-52.62612754,0.00015199,2]
[404028452,1769749831397,-676.88670274,0.000152,2]
[404028453,1769749831408,-1168.18354245,0.000152,2]
[404028454,1769749831447,-167.80975481,0.000152,2]
[404028455,1769749831458,-91.58040341,0.000152,2]
[404028456,1769749831469,-605.71259571,0.000152,2]
[404028457,1769749831480,-449.66614174,0.000152,2]
[404028458,1769749831492,-438.3991851,0.000152,2]
[404028459,1769749831503,-352.59879329,0.000152,2]
[404028460,1769749831526,-495.26222895,0.000152,2]
[404028461,1769749831553,-257.87596969,0.000152,2]
[404028462,1769749831564,-1174.95428758,0.000152,2]
[404028469,1769749837473,-1346.32760423,0.000152,2]
[404028470,1769749837482,-578.20924308,0.00016083,2]
[404028471,1769749837492,-1537.74,0.0001641,2]
[404028472,1769749837501,-301.72835029,0.00016439,2]
[404028473,1769749837510,-556.87,0.00016495,2]
[404028474,1769749837519,-164.47,0.00016503,2]
[404028475,1769749837528,-246.22,0.00016503,2]
[404028476,1769749837537,-21.70819033,0.00016515,2]
[404028477,1769749837673,-656.11180967,0.00016515,2]
[404028478,1769749837683,-420.0,0.00016631,2]
[404028479,1769749837691,-2639.11703447,0.00016698,2]
[404028483,1769749839783,-483.20644722,0.00016698,2]
[404028484,1769749839839,-194.26531831,0.00016698,2]
[404028485,1769749839848,-1531.86299932,0.00016715,2]
[404028486,1769749839859,-148.13700068,0.00016715,2]
[404028487,1769749839868,-195.0,0.00016719,2]
[404028488,1769749839878,-246.68613807,0.00016719,2]
[404028489,1769749839888,-844.0,0.0001672,2]
[404028490,1769749839897,-295.81810552,0.00016788,2]
[404028491,1769749839906,-322.6107,0.00016788,2]
[404028492,1769749839915,-209.40437684,0.00016788,2]
[404028493,1769749839924,-1332.077,0.00016798,2]
[404028494,1769749839933,-616.0,0.00016798,2]
[404028495,1769749839945,-217.15233878,0.00016843,2]
[404028496,1769749839954,-721.12765535,0.00016867,2]
[404028498,1769749839963,-854.2589148,0.00016867,2]
[404028500,1769749839972,-6575.0,0.00016877,2]
[404028501,1769749839982,-108.50508837,0.00016877,2]
[404028503,1769749843278,-783.94939895,0.00016877,2]
[404028504,1769749843309,-342.95156157,0.00016877,2]
[404028517,1769749846040,-1208.59395111,0.00016877,2]
[404028519,1769749846049,-916.0,0.00016877,2]
[404028521,1769749846058,-225.18697532,0.00016898,2]
[404028522,1769749846068,-408.2463,0.00016939,2]
[404028523,1769749846077,-233.51889341,0.00016953,2]
[404028524,1769749846088,-250.0,0.00017,2]
[404028525,1769749846098,-2514.26,0.00017001,2]
[404028526,1769749846108,-242.15909246,0.00017008,2]
[404028527,1769749846118,-200.0,0.00017032,2]
[404028528,1769749846127,-5192.65978138,0.00017057,2]
[404028531,1769750652000,4298.69,0.00013636,2]
[404028569,1769751031816,-299.99,0.00015796,2]
[404028571,1769751031827,-200.01,0.00015796,2]
[404028573,1769751031837,-103.989998,0.00015846,2]
[404028575,1769751031847,-91.010002,0.00015846,2]
[404028577,1769751031856,-369.86439863,0.00015846,2]
[404028579,1769751031866,-166.66,0.00015896,2]
[404028581,1769751031876,-1200.0,0.00015989,2]
[404028583,1769751031886,-300.0,0.00015989,2]
[404028585,1769751031895,-20505.12193992,0.0001599,2]
[404028589,1769751032713,-776.15703811,0.0001599,2]
[404028590,1769751032724,-4211.25193617,0.0001599,2]
[404028591,1769751037552,-769.31118832,0.0001599,2]
[404028592,1769751037564,-500.0,0.0001599,2]
[404028593,1769751037575,-1402.02305659,0.0001599,2]
[404028594,1769751037587,-1976.88057105,0.0001599,2]
[404028595,1769751037666,-963.02821688,0.0001599,2]
[404028596,1769751037737,-69907.14492037,0.0001599,2]
[404028597,1769751037747,-1559.95,0.0001599,2]
[404028598,1769751037757,-596.76637483,0.00015992,2]
[404028599,1769751037767,-151.0,0.00015997,2]
[404028600,1769751037776,-500.0,0.00015999,2]
[404028601,1769751037786,-524.4478525,0.00015999,2]
[404028602,1769751037826,-88.35324871,0.00015999,2]
[404028603,1769751037836,-523.73442631,0.00015999,2]
[404028605,1769751037845,-500.0,0.00015999,2]
[404028607,1769751037855,-500.0,0.00015999,2]
[404028608,1769751037865,-635.91573292,0.00015999,2]
[404028609,1769751037875,-558.88668763,0.00015999,2]
[404028610,1769751037884,-500.0,0.00015999,2]
[404028611,1769751037896,-223.94729489,0.00015999,2]
[404028613,1769751037906,-635.91573292,0.00015999,2]
[404028614,1769751037915,-500.0,0.00015999,2]
[404028615,1769751037925,-635.91573292,0.00015999,2]
[404028616,1769751037934,-500.0,0.00015999,2]
[404028617,1769751037944,-500.0,0.00015999,2]
[404028618,1769751037954,-147.00517928,0.00015999,2]
[404028619,1769751037966,-335.96000004,0.00015999,2]
[404028620,1769751037977,-152.9505536,0.00015999,2]
[404028621,1769751037987,-500.0,0.00015999,2]
[404028622,1769751037996,-635.91573292,0.00015999,2]
[404028623,1769751038006,-500.0,0.00015999,2]
[404028624,1769751038015,-635.91573292,0.00015999,2]
[404028625,1769751038025,-635.91573292,0.00015999,2]
[404028626,1769751038034,-635.91573292,0.00015999,2]
[404028627,1769751038044,-635.91573292,0.00015999,2]
[404028628,1769751038056,-635.91573292,0.00015999,2]
[404028629,1769751038066,-635.91573292,0.00015999,2]
[404028630,1769751038075,-635.91573292,0.00015999,2]
[404028631,1769751038085,-635.91573292,0.00015999,2]
[404028632,1769751038095,-635.91573292,0.00015999,2]
[404028633,1769751038104,-635.91573292,0.00015999,2]
[404028634,1769751038114,-420.19495865,0.00015999,2]
[404028636,1769751039977,-215.72077427,0.00015999,2]
[404028637,1769751039986,-74.66422581,0.00015999,2]
[404028639,1769751040054,-561.25150711,0.00015999,2]
[404028640,1769751040064,-635.91573292,0.00015999,2]
[404028641,1769751040073,-635.91573292,0.00015999,2]
[404028642,1769751040083,-221.9020043,0.00015999,2]
[404028643,1769751040094,-414.01372862,0.00015999,2]
[404028644,1769751040104,-87.63659251,0.00015999,2]
[404028645,1769751040115,-548.27914041,0.00015999,2]
[404028646,1769751040124,-635.91573292,0.00015999,2]
[404028647,1769751040134,-635.91573292,0.00015999,2]
[404028648,1769751040145,-635.91573292,0.00015999,2]
[404028649,1769751040155,-146.96643725,0.00015999,2]
[404028650,1769751040166,-488.94929567,0.00015999,2]
[404028651,1769751040176,-635.91573292,0.00015999,2]
[404028652,1769751040185,-635.91573292,0.00015999,2]
[404028653,1769751040195,-635.91573292,0.00015999,2]
[404028654,1769751040204,-635.91573292,0.00015999,2]
[404028655,1769751040213,-635.91573292,0.00015999,2]
[404028656,1769751040223,-635.91573292,0.00015999,2]
[404028657,1769751040232,-635.91573292,0.00015999,2]
[404028658,1769751040241,-635.91573292,0.00015999,2]
[404028659,1769751040251,-635.91573292,0.00015999,2]
[404028660,1769751040260,-635.91573292,0.00015999,2]
[404028661,1769751040270,-635.91573292,0.00015999,2]
[404028662,1769751040282,-635.91573292,0.00015999,2]
[404028663,1769751040291,-179.35778968,0.00015999,2]
[404028672,1769751043996,-456.55794324,0.00015999,2]
[404028673,1769751044006,-635.91573292,0.00015999,2]
[404028674,1769751044016,-635.91573292,0.00015999,2]
[404028675,1769751044025,-635.91573292,0.00015999,2]
[404028676,1769751044035,-635.91573292,0.00015999,2]
[404028677,1769751044045,-635.91573292,0.00015999,2]
[404028678,1769751044054,-635.91573292,0.00015999,2]
[404028679,1769751044064,-635.91573292,0.00015999,2]
[404028680,1769751044073,-635.91573292,0.00015999,2]
[404028681,1769751044082,-75411.84129352,0.00016,4]
[404028728,1769752134036,165.0,0.0001,2]
[404028838,1769752231649,-542.25,0.0001497,2]
[404028839,1769752231659,-175.972188,0.0001497,2]
[404028840,1769752231668,-200.0,0.00015108,2]
[404028841,1769752231679,-176.35,0.0001521,2]
[404028842,1769752231688,-176.35,0.00015441,2]
[404028843,1769752231697,-500.35,0.00015591,2]
[404028844,1769752231708,-1200.0,0.00015599,2]
[404028845,1769752231718,-7557.41400993,0.000156,2]
[404028846,1769752231728,-180.11,0.000156,2]
[404028847,1769752231738,-180.11,0.000156,2]
[404028848,1769752231747,-622.46,0.000156,2]
[404028849,1769752231756,-346.03,0.000156,2]
[404028850,1769752231765,-180.11,0.000156,2]
[404028851,1769752231774,-301.37,0.000156,2]
[404028852,1769752231784,-176.35,0.00015671,2]
[404028853,1769752231793,-300.0,0.00015698,2]
[404028854,1769752231803,-500.0,0.00015699,2]
[404028855,1769752231813,-469.32747721,0.00015699,2]
[404028856,1769752231823,-500.0,0.00015699,2]
[404028857,1769752231832,-500.0,0.00015699,2]
[404028858,1769752231842,-500.0,0.00015699,2]
[404028859,1769752231851,-500.0,0.00015699,2]
[404028860,1769752231861,-500.0,0.00015699,2]
[404028861,1769752231871,-153.70458779,0.00015699,2]
[404028862,1769752231880,-500.0,0.00015699,2]
[404028863,1769752231890,-500.0,0.00015699,2]
[404028864,1769752231899,-500.0,0.00015699,2]
[404028865,1769752231909,-500.0,0.00015699,2]
[404028866,1769752231918,-500.0,0.00015699,2]
[404028867,1769752231928,-500.0,0.00015699,2]
[404028868,1769752231937,-500.0,0.00015699,2]
[404028869,1769752231947,-500.0,0.00015699,2]
[404028871,1769752231956,-500.0,0.00015699,2]
[404028873,1769752231966,-500.0,0.00015699,2]
[404028875,1769752231976,-500.0,0.00015699,2]
[404028878,1769752231985,-500.0,0.00015699,2]
[404028882,1769752231995,-500.0,0.00015699,2]
[404028885,1769752232005,-500.0,0.00015699,2]
[404028888,1769752232014,-500.0,0.00015699,2]
[404028890,1769752232023,-500.0,0.00015699,2]
[404028892,1769752232032,-500.0,0.00015699,2]
[404028894,1769752232042,-500.0,0.00015699,2]
[404028895,1769752232051,-500.0,0.00015699,2]
[404028898,1769752232060,-500.0,0.00015699,2]
[404028899,1769752232070,-500.0,0.00015699,2]
[404028901,1769752232079,-500.0,0.00015699,2]
[404028904,1769752232089,-500.0,0.00015699,2]
[404028906,1769752232098,-500.0,0.00015699,2]
[404028908,1769752232107,-500.0,0.00015699,2]
[404028910,1769752232116,-500.0,0.00015699,2]
[404028911,1769752232125,-500.0,0.00015699,2]
[404028914,1769752232135,-500.0,0.00015699,2]
[404028916,1769752232144,-500.0,0.00015699,2]
[404028917,1769752232153,-500.0,0.00015699,2]
[404028920,1769752232163,-500.0,0.00015699,2]
[404028922,1769752232172,-500.0,0.00015699,2]
[404028924,1769752232181,-551.80003216,0.00015699,2]
[404028926,1769752232190,-500.0,0.00015699,2]
[404028928,1769752232199,-500.0,0.00015699,2]
[404028930,1769752232208,-500.0,0.00015699,2]
[404028931,1769752232217,-500.0,0.00015699,2]
[404028933,1769752232226,-500.0,0.00015699,2]
[404028935,1769752232236,-500.0,0.00015699,2]
[404028937,1769752232245,-500.0,0.00015699,2]
[404028939,1769752232254,-500.0,0.00015699,2]
[404028940,1769752232264,-500.0,0.00015699,2]
[404028941,1769752232273,-500.0,0.00015699,2]
[404028942,1769752232283,-500.0,0.00015699,2]
[404028943,1769752232292,-500.0,0.00015699,2]
[404028944,1769752232302,-500.0,0.00015699,2]
[404028945,1769752232310,-500.0,0.00015699,2]
[404028946,1769752232319,-500.0,0.00015699,2]
[404028947,1769752232329,-500.0,0.00015699,2]
[404028948,1769752232339,-500.0,0.00015699,2]
[404028949,1769752232349,-500.0,0.00015699,2]
[404028950,1769752232358,-500.0,0.00015699,2]
[404028951,1769752232367,-500.0,0.00015699,2]
[404028952,1769752232377,-500.0,0.00015699,2]
[404028953,1769752232387,-500.0,0.00015699,2]
[404028954,1769752232397,-299.16,0.00015699,2]
[404028955,1769752232407,-15003.0,0.000157,2]
[404028956,1769752232416,-52151.22354748,0.000157,2]
[404028957,1769752232433,-2072.44626956,0.000157,2]
[404028958,1769752232486,-23433.07561304,0.000157,2]
[404028959,1769752232498,-1159.94357071,0.000157,2]
[404028960,1769752232510,-3037.07724405,0.000157,2]
[404028961,1769752232559,-871.14161176,0.000157,2]
[404028962,1769752232571,-612.78854042,0.000157,2]
[404028963,1769752232583,-1095.14892138,0.000157,2]
[404028964,1769752232596,-477.49208952,0.000157,2]
[404028965,1769752232638,-1612.39440711,0.000157,2]
[404028966,1769752232653,-385.68094528,0.000157,2]
[404028967,1769752237786,-42156.91203969,0.000157,2]
[404028968,1769752237797,-179.46,0.000157,2]
[404028969,1769752237807,-485.09,0.000157,2]
[404028970,1769752237824,-180.11,0.000157,2]
[404028971,1769752237836,-485.09,0.000157,2]
[404028972,1769752237847,-151.0,0.000157,2]
[404028973,1769752237859,-469.09,0.000157,2]
[404028974,1769752237870,-151.0,0.00015739,2]
[404028975,1769752237880,-151.0,0.00015739,2]
[404028976,1769752237890,-151.0,0.00015739,2]
[404028977,1769752237900,-968.55,0.00015741,2]
[404028978,1769752237911,-485.09,0.00015741,2]
[404028979,1769752237921,-485.09,0.00015741,2]
[404028980,1769752237931,-485.09,0.00015741,2]
[404028981,1769752237941,-169.63,0.00015778,2]
[404028982,1769752237950,-469.09,0.00015778,2]
[404028983,1769752237959,-265.0,0.00015796,2]
[404028984,1769752237970,-979.28,0.00015841,2]
[404028985,1769752237980,-485.09,0.00015841,2]
[404028986,1769752237991,-485.09,0.00015841,2]
[404028987,1769752238001,-970.18,0.00015841,2]
[404028988,1769752238011,-485.09,0.00015841,2]
[404028989,1769752238021,-7557.41400985,0.00015856,2]
[404028990,1769752238030,-500.0,0.00015889,2]
[404028991,1769752238040,-366.61341412,0.00015889,2]
[404028993,1769752238051,-151.0,0.00015898,2]
[404028994,1769752238060,-154.551264,0.00015898,2]
[404028995,1769752238069,-151.0,0.00015899,2]
[404028996,1769752238079,-172.078976,0.00015899,2]
[404028997,1769752238088,-152.664163,0.00015899,2]
[404028998,1769752238098,-151.0,0.00015899,2]
[404028999,1769752238107,-151.0,0.00015899,2]
[404029001,1769752238116,-153.456074,0.00015899,2]
[404029002,1769752238127,-180.11,0.000159,2]
[404029003,1769752238136,-981.4315608,0.000159,2]
[404029004,1769752238146,-522.17057795,0.000159,2]
[404029005,1769752238156,-176.35,0.00015902,2]
[404029006,1769752238166,-299.16,0.00015973,2]
[404029007,1769752238175,-180.11,0.00015978,2]
[404029008,1769752238189,-469.09,0.00015978,2]
[404029009,1769752238199,-180.11,0.00015978,2]
[404029010,1769752238209,-469.09,0.00015978,2]
[404029011,1769752238219,-184.42,0.00015978,2]
[404029012,1769752238229,-180.11,0.00015978,2]
[404029013,1769752238239,-180.11,0.00015978,2]
[404029014,1769752238249,-1247.96,0.0001599,2]
[404029015,1769752238259,-1247.96,0.0001599,2]
[404029016,1769752238270,-1184.03311277,0.00015999,2]
[404029017,1769752238280,-151.0,0.00015999,2]
[404029018,1769752238295,-142019.06265001,0.00016,4]
[404029019,1769752238306,-20621.0636308,0.00016,2]
[404029020,1769752238317,-1959.5626497,0.00016,2]
[404029021,1769752238328,-151.0,0.00016,2]
[404029022,1769752238339,-1354.4976248,0.00016,2]
[404029023,1769752238350,-151.0,0.00016,2]
[404029024,1769752238361,-151.0,0.00016,2]
[404029025,1769752238375,-4072.6403712,0.00016,2]
[404029026,1769752238392,-151.0,0.00016,2]
[404029027,1769752238409,-151.0,0.00016,2]
[404029028,1769752238419,-151.0,0.00016,2]
[404029029,1769752238430,-151.0,0.00016,2]
[404029030,1769752238441,-1502.0,0.00016,2]
[404029031,1769752238451,-151.0,0.00016,2]
[404029032,1769752238461,-159.0,0.00016,2]
[404029033,1769752238474,-153.0,0.00016,2]
[404029034,1769752238484,-151.0,0.00016,2]
[404029035,1769752238494,-159.0,0.00016,2]
[404029036,1769752238504,-151.0,0.00016,2]
[404029037,1769752238515,-153.0,0.00016,2]
[404029038,1769752238525,-151.0,0.00016,2]
[404029039,1769752238534,-153.0,0.00016,2]
[404029040,1769752238545,-151.0,0.00016,2]
[404029041,1769752238555,-153.0,0.00016,2]
[404029042,1769752238564,-153.0,0.00016,2]
[404029043,1769752238574,-153.0,0.00016,2]
[404029044,1769752238584,-151.0,0.00016,2]
[404029045,1769752238595,-151.0,0.00016,2]
[404029046,1769752238605,-153.0,0.00016,2]
[404029047,1769752238615,-151.0,0.00016,2]
[404029048,1769752238624,-153.0,0.00016,2]
[404029049,1769752238635,-151.0,0.00016,2]
[404029050,1769752238649,-153.0,0.00016,2]
[404029051,1769752238658,-151.0,0.00016,2]
[404029052,1769752238668,-166.83149465,0.00016,2]
[404029053,1769752238679,-166.0,0.00016,2]
[404029054,1769752238692,-153.0,0.00016,2]
[404029055,1769752238702,-151.0,0.00016,2]
[404029056,1769752238713,-153.0,0.00016,2]
[404029057,1769752238725,-151.0,0.00016,2]
[404029058,1769752238735,-151.0,0.00016,2]
[404029059,1769752238745,-153.0,0.00016,2]
[404029060,1769752238755,-155.45129837,0.00016,2]
[404029061,1769752238769,-151.0,0.00016,2]
[404029062,1769752238779,-153.0,0.00016,2]
[404029063,1769752238789,-151.0,0.00016,2]
[404029064,1769752238800,-151.0,0.00016,2]
[404029065,1769752238810,-153.0,0.00016,2]
[404029066,1769752238820,-151.0,0.00016,2]
[404029067,1769752238830,-153.0,0.00016,2]
[404029068,1769752238840,-151.0,0.00016,2]
[404029069,1769752238850,-153.0,0.00016,2]
[404029070,1769752238860,-151.0,0.00016,2]
[404029071,1769752238870,-153.0,0.00016,2]
[404029072,1769752238881,-153.0,0.00016,2]
[404029073,1769752238891,-30.6044302,0.00016,2]
[404029074,1769752238937,-120.3955698,0.00016,2]
[404029075,1769752238947,-153.0,0.00016,2]
[404029076,1769752238960,-151.0,0.00016,2]
[404029077,1769752238971,-153.0,0.00016,2]
[404029078,1769752238981,-151.0,0.00016,2]
[404029079,1769752238991,-153.0,0.00016,2]
[404029080,1769752239001,-151.0,0.00016,2]
[404029081,1769752239012,-153.0,0.00016,2]
[404029082,1769752239022,-151.0,0.00016,2]
[404029083,1769752239031,-153.0,0.00016,2]
[404029084,1769752239042,-151.0,0.00016,2]
[404029085,1769752239052,-153.0,0.00016,2]
[404029086,1769752239062,-151.0,0.00016,2]
[404029087,1769752239071,-153.0,0.00016,2]
[404029088,1769752239081,-153.0,0.00016,2]
[404029089,1769752239091,-153.0,0.00016,2]
[404029090,1769752239101,-153.0,0.00016,2]
[404029091,1769752239112,-153.0,0.00016,2]
[404029092,1769752239122,-153.0,0.00016,2]
[404029093,1769752239132,-153.0,0.00016,2]
[404029094,1769752239142,-153.0,0.00016,2]
[404029095,1769752239156,-153.0,0.00016,2]
[404029096,1769752239166,-153.0,0.00016,2]
[404029097,1769752239176,-153.0,0.00016,2]
[404029098,1769752239186,-153.0,0.00016,2]
[404029099,1769752239195,-153.0,0.00016,2]
[404029100,1769752239205,-148.11762805,0.00016,2]
[404029101,1769752239217,-4.88237195,0.00016,2]
[404029102,1769752239226,-153.0,0.00016,2]
[404029103,1769752239236,-153.0,0.00016,2]
[404029104,1769752239246,-153.0,0.00016,2]
[404029105,1769752239256,-153.0,0.00016,2]
[404029106,1769752239266,-153.0,0.00016,2]
[404029107,1769752239277,-153.0,0.00016,2]
[404029108,1769752239287,-153.0,0.00016,2]
[404029109,1769752239297,-97.08536808,0.00016,2]
[404029110,1769752239309,-82.27225192,0.00016,2]
[404029111,1769752239319,-179.35762,0.00016,2]
[404029112,1769752239329,-179.35762,0.00016,2]
[404029113,1769752239339,-179.35762,0.00016,2]
[404029114,1769752239348,-179.35762,0.00016,2]
[404029115,1769752239358,-73.68726808,0.00016,2]
[404029116,1769752239437,-105.67035192,0.00016,2]
[404029117,1769752239447,-179.35762,0.00016,2]
[404029118,1769752239457,-179.35762,0.00016,2]
[404029119,1769752239467,-274.654369,0.00016,2]
[404029120,1769752239477,-153.228181,0.00016,2]
[404029121,1769752239488,-27.11185808,0.00016,2]
[404029122,1769752239499,-405.31094203,0.00016,2]
[404029123,1769752239512,-979.79836089,0.00016,2]
[404029124,1769752239522,-1412.221161,0.00016,2]
[404029125,1769752239532,-1412.221161,0.00016,2]
[404029126,1769752239542,-1412.221161,0.00016,2]
[404029127,1769752239552,-1412.221161,0.00016,2]
[404029128,1769752239562,-1412.221161,0.00016,2]
[404029129,1769752239572,-1412.221161,0.00016,2]
[404029130,1769752239582,-1412.221161,0.00016,2]
[404029131,1769752239592,-1412.221161,0.00016,2]
[404029132,1769752239602,-1412.221161,0.00016,2]
[404029133,1769752239612,-1412.221161,0.00016,2]
[404029134,1769752239622,-1412.221161,0.00016,2]
[404029135,1769752239633,-153.0,0.00016,2]
[404029136,1769752239646,-159.0,0.00016,2]
[404029137,1769752239656,-153.0,0.00016,2]
[404029138,1769752239667,-153.0,0.00016,2]
[404029139,1769752239677,-469.09,0.00016078,2]
[404029140,1769752239689,-150.0,0.00016092,2]
[404029141,1769752239699,-180.11,0.000161,2]
[404029142,1769752239708,-180.11,0.000161,2]
[404029143,1769752239720,-180.11,0.000161,2]
[404029144,1769752239730,-180.11,0.000161,2]
[404029145,1769752239740,-469.09,0.000161,2]
[404029146,1769752239749,-180.11,0.000161,2]
[404029147,1769752239759,-469.09,0.000161,2]
[404029148,1769752239770,-179.35762,0.000161,2]
[404029149,1769752239780,-179.35762,0.000161,2]
[404029150,1769752239791,-179.35762,0.000161,2]
[404029151,1769752239801,-179.35762,0.000161,2]
[404029152,1769752239811,-7557.41400985,0.00016111,2]
[404029153,1769752239822,-981.4315608,0.00016122,2]
[404029154,1769752239832,-176.35,0.00016132,2]
[404029155,1769752239842,-469.09,0.000162,2]
[404029156,1769752239853,-469.09,0.000162,2]
[404029157,1769752239864,-166.66,0.0001623,2]
[404029158,1769752239874,-299.16,0.00016247,2]
[404029159,1769752239884,-150.0,0.00016249,2]
[404029160,1769752239893,-151.0,0.00016267,2]
[404029161,1769752239904,-151.0,0.00016267,2]
[404029162,1769752239914,-485.09,0.000163,2]
[404029163,1769752239924,-970.18,0.000163,2]
[404029164,1769752239934,-496.41,0.000163,2]
[404029165,1769752239944,-151.0,0.000163,2]
[404029166,1769752239954,-151.0,0.000163,2]
[404029167,1769752239964,-981.4315608,0.00016344,2]
[404029168,1769752239974,-179.35762,0.00016354,2]
[404029169,1769752239985,-179.35762,0.00016354,2]
[404029170,1769752239996,-179.35762,0.00016354,2]
[404029171,1769752240007,-179.35762,0.00016354,2]
[404029172,1769752240018,-252.02770968,0.0001636,2]
[404029173,1769752240028,-7557.41400985,0.00016367,2]
[404029174,1769752240038,-469.09,0.00016382,2]
[404029175,1769752240048,-469.09,0.00016382,2]
[404029176,1769752240059,-469.09,0.00016382,2]
[404029177,1769752240069,-469.09,0.00016382,2]
[404029178,1769752240079,-469.09,0.00016382,2]
[404029179,1769752240088,-469.09,0.00016382,2]
[404029180,1769752240099,-469.09,0.00016382,2]
[404029181,1769752240109,-469.09,0.00016382,2]
[404029182,1769752240120,-469.09,0.00016382,2]
[404029183,1769752240130,-469.09,0.00016382,2]
[404029184,1769752240141,-469.09,0.00016382,2]
[404029185,1769752240151,-469.09,0.00016382,2]
[404029186,1769752240161,-479.22,0.00016382,2]
[404029187,1769752240170,-938.05,0.00016382,2]
[404029188,1769752240180,-469.09,0.00016382,2]
[404029189,1769752240190,-469.09,0.00016382,2]
[404029190,1769752240199,-469.09,0.00016382,2]
[404029191,1769752240209,-250.0,0.00016389,2]
[404029192,1769752240219,-1247.96,0.0001639,2]
[404029193,1769752240229,-2833.0,0.000164,2]